bitfinex/quotes_SOLUSD_20241122
["timestamp","ask_amount","ask_price","bid_price","bid_amount"]
[1732306807497,6.08221036,254.3,254.18,11.99241134]
[1732306807707,6.0458,254.35,254.22,11.99241134]
[1732306807708,11.99241134,254.29,254.22,11.99241134]
[1732306807907,6.08221036,254.32,254.24,11.99241134]
[1732306808217,18.0746217,254.33,254.24,11.99241134]
[1732306808706,11.99241134,254.31,254.24,11.99241134]
[1732306808916,11.99241134,254.31,254.22,11.99241134]
[1732306809104,11.99241134,254.27,254.2,11.99241134]
[1732306809309,11.99241134,254.27,254.18,11.99241134]
[1732306809615,11.99241134,254.29,254.22,11.99241134]
[1732306809793,11.99241134,254.31,254.24,11.99241134]
[1732306810913,6.08221036,254.33,254.26,11.99241134]
[1732306811111,6.08221036,254.34,254.26,11.99241134]
[1732306811616,6.08221036,254.34,254.3,11.99241134]
[1732306811818,6.08221036,254.35,254.3,11.99241134]
[1732306812195,21.71491036,254.36,254.3,11.99241134]
[1732306812819,6.08221036,254.38,254.3,11.99241134]
[1732306813023,18.0746217,254.38,254.24,21.8164]
[1732306813201,11.99241134,254.36,254.28,11.99241134]
[1732306813721,18.0746217,254.38,254.28,11.99241134]
[1732306813921,18.0746217,254.38,254.3,11.99241134]
[1732306814122,11.99241134,254.38,254.3,11.99241134]
[1732306814301,18.0746217,254.38,254.3,11.99241134]
[1732306814500,6.08221036,254.39,254.32,11.99241134]
[1732306814816,6.08221036,254.4,254.34,11.99241134]
[1732306815008,18.0746217,254.4,254.32,11.99241134]
[1732306815205,18.0746217,254.4,254.3,11.99241134]
[1732306816019,11.99241134,254.38,254.28,11.99241134]
[1732306816200,6.08221036,254.39,254.3,11.99241134]
[1732306816394,18.0746217,254.4,254.32,11.99241134]
[1732306816815,6.08221036,254.4,254.34,11.99241134]
[1732306818018,6.08221036,254.42,254.36,11.99241134]
[1732306818193,6.08221036,254.42,254.38,11.99241134]
[1732306818396,6.08221036,254.43,254.38,11.99241134]
[1732306820295,6.08221036,254.44,254.38,11.99241134]
[1732306820922,6.08221036,254.44,254.43,11.99241134]
[1732306821099,6.08221036,254.46,254.39,11.99241134]
[1732306821301,18.0746217,254.47,254.39,11.99241134]
[1732306822008,6.08221036,254.47,254.39,11.99241134]
[1732306822210,6.08221036,254.48,254.39,11.99241134]
[1732306822516,11.99241134,254.45,254.36,11.99241134]
[1732306823920,18.0746217,254.47,254.38,11.99241134]
[1732306824313,6.08221036,254.47,254.4,11.99241134]
[1732306824617,6.08221036,254.48,254.4,11.99241134]
[1732306824825,18.0746217,254.49,254.4,11.99241134]
[1732306825124,11.99241134,254.49,254.4,11.99241134]
[1732306825506,11.99241134,254.49,254.29,26.276884]
[1732306825507,6.08221036,254.5,254.44,11.99241134]
[1732306825703,6.08221036,254.51,254.44,11.99241134]
[1732306826008,6.08221036,254.51,254.46,11.99241134]
[1732306826323,6.08221036,254.52,254.46,11.99241134]
[1732306826519,6.08221036,254.54,254.46,11.99241134]
[1732306826719,6.08221036,254.54,254.48,11.99241134]
[1732306827128,6.08221036,254.57,254.52,11.99241134]
[1732306827732,6.08221036,254.61,254.54,11.99241134]
[1732306827948,6.08221036,254.62,254.54,11.99241134]
[1732306828106,6.08221036,254.63,254.54,11.99241134]
[1732306828306,21.22491036,254.64,254.54,11.99241134]
[1732306829200,15.1427,254.64,254.54,11.99241134]
[1732306830410,15.1427,254.64,254.56,11.99241134]
[1732306831330,11.99241134,254.63,254.54,11.99241134]
[1732306832325,11.99241134,254.57,254.48,11.99241134]
[1732306832727,11.99241134,254.59,254.5,11.99241134]
[1732306832928,11.99241134,254.59,254.52,11.99241134]
[1732306835034,11.99241134,254.59,254.5,11.99241134]
[1732306835214,11.99241134,254.55,254.46,11.99241134]
[1732306836724,11.99241134,254.53,254.44,11.99241134]
[1732306837020,11.99241134,254.51,254.42,11.99241134]
[1732306837215,11.99241134,254.47,254.39,11.99241134]
[1732306837420,11.99241134,254.45,254.37,11.99241134]
[1732306837730,11.99241134,254.45,254.29,2.5]
[1732306837731,11.99241134,254.43,254.35,11.99241134]
[1732306837920,11.99241134,254.41,254.33,11.99241134]
[1732306838115,11.99241134,254.43,254.35,11.99241134]
[1732306838734,11.99241134,254.47,254.39,11.99241134]
[1732306841511,11.99241134,254.47,254.41,11.99241134]
[1732306842126,11.99241134,254.5,254.41,11.99241134]
[1732306842311,11.99241134,254.5,254.43,11.99241134]
[1732306843332,11.99241134,254.5,254.33,2.5]
[1732306843512,11.99241134,254.5,254.41,11.99241134]
[1732306845726,21.7659,254.52,254.28,34.76821134]
[1732306845727,11.99241134,254.45,254.37,11.99241134]
[1732306846141,11.99241134,254.47,254.39,11.99241134]
[1732306846433,11.99241134,254.51,254.43,11.99241134]
[1732306846833,11.99241134,254.49,254.41,11.99241134]
[1732306847024,11.99241134,254.45,254.39,11.99241134]
[1732306847548,11.99241134,254.45,254.37,11.99241134]
[1732306850142,11.99241134,254.43,254.35,11.99241134]
[1732306851531,16.6565,254.42,254.35,11.99241134]
[1732306853343,16.6565,254.42,254.37,11.99241134]
[1732306854143,16.6565,254.42,254.35,11.99241134]
[1732306856222,16.6565,254.42,254.37,11.99241134]
[1732306857237,16.6565,254.42,254.41,11.99241134]
[1732306857539,16.6565,254.42,254.37,11.99241134]
[1732306858455,16.6565,254.42,254.39,11.99241134]
[1732306859139,16.6565,254.42,254.37,11.99241134]
[1732306860425,16.6565,254.42,254.41,11.99241134]
[1732306860622,15.6561,254.49,254.41,11.99241134]
[1732306861098,27.64851134,254.49,254.41,11.99241134]
[1732306861352,11.99241134,254.47,254.37,11.99241134]
[1732306862056,11.99241134,254.47,254.39,11.99241134]
[1732306862644,15.6561,254.49,254.41,11.99241134]
[1732306862831,15.6561,254.49,254.45,11.99241134]
[1732306863547,6.08221036,254.54,254.47,11.99241134]
[1732306863755,15.5125,254.56,254.5,11.99241134]
[1732306864044,15.5125,254.56,254.41,11.99241134]
[1732306864045,15.5125,254.56,254.54,11.99241134]
[1732306864273,6.08221036,254.6,254.54,11.99241134]
[1732306864464,16.151,254.62,254.54,11.99241134]
[1732306865344,11.99241134,254.61,254.54,11.99241134]
[1732306865530,16.151,254.62,254.56,11.99241134]
[1732306866238,6.08221036,254.66,254.61,11.99241134]
[1732306866439,6.08221036,254.68,254.64,11.99241134]
[1732306866640,6.08221036,254.68,254.62,11.99241134]
[1732306866842,11.99241134,254.66,254.58,11.99241134]
[1732306867032,11.99241134,254.64,254.54,11.99241134]
[1732306867471,11.99241134,254.64,254.56,11.99241134]
[1732306868150,11.99241134,254.62,254.54,11.99241134]
[1732306868734,6.08221036,254.65,254.57,11.99241134]
[1732306868930,18.0746217,254.66,254.57,11.99241134]
[1732306869136,6.08221036,254.66,254.59,11.99241134]
[1732306869342,18.0746217,254.66,254.59,11.99241134]
[1732306869541,6.08221036,254.66,254.63,11.99241134]
[1732306869754,6.08221036,254.66,254.61,11.99241134]
[1732306870141,6.08221036,254.66,254.59,11.99241134]
[1732306870860,11.99241134,254.64,254.57,11.99241134]
[1732306871040,18.0746217,254.66,254.57,11.99241134]
[1732306871650,6.08221036,254.67,254.59,11.99241134]
[1732306872051,23.776884,254.66,254.59,11.99241134]
[1732306872349,35.76929534,254.64,254.55,11.99241134]
[1732306872656,41.8515057,254.64,254.55,11.99241134]
[1732306874026,29.85909436,254.64,254.57,11.99241134]
[1732306874672,11.99241134,254.62,254.53,11.99241134]
[1732306875939,41.8515057,254.64,254.55,11.99241134]
[1732306876455,6.08221036,254.63,254.55,11.99241134]
[1732306876654,41.8515057,254.64,254.55,11.99241134]
[1732306876946,6.08221036,254.64,254.57,11.99241134]
[1732306877144,27.44841036,254.65,254.59,11.99241134]
[1732306877551,21.3662,254.65,254.59,11.99241134]
[1732306877735,21.3662,254.65,254.61,11.99241134]
[1732306878064,6.08221036,254.67,254.63,11.99241134]
[1732306878355,6.08221036,254.7,254.66,11.99241134]
[1732306878875,22.03561036,254.71,254.66,11.99241134]
[1732306879258,6.08221036,254.71,254.69,11.99241134]
[1732306879439,6.08221036,254.72,254.69,11.99241134]
[1732306880335,6.08221036,254.71,254.69,11.99241134]
[1732306880553,6.08221036,254.72,254.69,11.99241134]
[1732306881655,6.08221036,254.72,254.57,6.1646]
[1732306881656,6.08221036,254.72,254.67,11.99241134]
[1732306883661,6.08221036,254.73,254.69,11.99241134]
[1732306883868,6.08221036,254.73,254.71,11.99241134]
[1732306884049,6.08221036,254.75,254.71,11.99241134]
[1732306884356,6.08221036,254.76,254.71,11.99241134]
[1732306884741,22.03561036,254.77,254.69,11.99241134]
[1732306885255,18.0746217,254.76,254.67,11.99241134]
[1732306885438,11.99241134,254.76,254.67,11.99241134]
[1732306885640,18.0746217,254.76,254.67,11.99241134]
[1732306885943,6.08221036,254.75,254.67,11.99241134]
[1732306886149,23.776884,254.74,254.67,11.99241134]
[1732306888461,23.776884,254.75,254.67,11.99241134]
[1732306890655,6.08221036,254.78,254.71,11.99241134]
[1732306890863,11.99241134,254.77,254.69,11.99241134]
[1732306891082,11.99241134,254.77,254.57,6.1646]
[1732306891083,11.99241134,254.75,254.67,11.99241134]
[1732306891245,11.99241134,254.77,254.69,11.99241134]
[1732306892251,23.776884,254.76,254.69,11.99241134]
[1732306892641,23.776884,254.76,254.67,11.99241134]
[1732306892841,11.99241134,254.73,254.63,11.99241134]
[1732306893064,11.99241134,254.71,254.63,11.99241134]
[1732306893961,11.99241134,254.73,254.63,11.99241134]
[1732306894809,11.99241134,254.71,254.63,11.99241134]
[1732306895063,11.99241134,254.69,254.59,11.99241134]
[1732306895441,11.99241134,254.69,254.61,11.99241134]
[1732306896255,23.776884,254.7,254.63,11.99241134]
[1732306897343,11.99241134,254.69,254.61,11.99241134]
[1732306897671,23.776884,254.7,254.63,11.99241134]
[1732306898370,23.776884,254.7,254.61,11.99241134]
[1732306898665,11.99241134,254.69,254.61,11.99241134]
[1732306898845,11.99241134,254.67,254.59,11.99241134]
[1732306899046,23.776884,254.66,254.59,11.99241134]
[1732306899245,23.776884,254.66,254.57,11.99241134]
[1732306899747,11.99241134,254.65,254.57,11.99241134]
[1732306899951,23.776884,254.64,254.57,11.99241134]
[1732306902753,23.776884,254.66,254.57,11.99241134]
[1732306903062,11.99241134,254.65,254.57,11.99241134]
[1732306903363,23.776884,254.64,254.55,11.99241134]
[1732306903544,11.99241134,254.6,254.51,11.99241134]
[1732306903743,11.99241134,254.58,254.49,11.99241134]
[1732306903955,11.99241134,254.56,254.49,11.99241134]
[1732306904142,11.99241134,254.56,254.47,11.99241134]
[1732306904342,11.99241134,254.56,254.49,11.99241134]
[1732306905550,15.606,254.62,254.49,11.99241134]
[1732306905551,11.99241134,254.58,254.49,11.99241134]
[1732306905955,23.776884,254.57,254.49,11.99241134]
[1732306906466,23.776884,254.61,254.53,11.99241134]
[1732306906768,23.776884,254.61,254.41,28.25191134]
[1732306906769,23.776884,254.58,254.49,11.99241134]
[1732306906954,11.99241134,254.57,254.49,11.99241134]
[1732306907146,11.99241134,254.55,254.47,11.99241134]
[1732306908266,11.99241134,254.53,254.45,11.99241134]
[1732306908950,11.99241134,254.49,254.41,11.99241134]
[1732306909765,15.4847,254.5,254.39,11.99241134]
[1732306909766,11.99241134,254.47,254.39,11.99241134]
[1732306910747,11.99241134,254.47,254.41,11.99241134]
[1732306910954,11.99241134,254.49,254.41,11.99241134]
[1732306911159,11.99241134,254.47,254.39,11.99241134]
[1732306911952,11.99241134,254.49,254.41,11.99241134]
[1732306912152,15.4847,254.5,254.45,11.99241134]
[1732306912963,15.4847,254.5,254.43,11.99241134]
[1732306914191,11.99241134,254.45,254.37,11.99241134]
[1732306914470,11.99241134,254.43,254.35,11.99241134]
[1732306915052,11.99241134,254.43,254.24,2.5]
[1732306915053,11.99241134,254.38,254.23,15.8649]
[1732306915253,23.776884,254.39,254.31,11.99241134]
[1732306916359,11.99241134,254.4,254.33,11.99241134]
[1732306917270,23.776884,254.41,254.33,11.99241134]
[1732306917472,11.99241134,254.4,254.33,11.99241134]
[1732306917657,11.99241134,254.4,254.31,11.99241134]
[1732306918551,11.99241134,254.37,254.12,2.5]
[1732306918866,11.99241134,254.31,254.23,11.99241134]
[1732306919265,11.99241134,254.27,254.19,11.99241134]
[1732306919470,21.5277,254.39,254.06,21.4778]
[1732306919471,11.99241134,254.31,254.23,11.99241134]
[1732306920473,11.99241134,254.31,254.1,2.5]
[1732306920679,11.99241134,254.25,254.17,11.99241134]
[1732306920984,11.99241134,254.27,254.19,11.99241134]
[1732306922263,11.99241134,254.28,254.2,11.99241134]
[1732306923285,11.99241134,254.3,254.22,11.99241134]
[1732306923461,23.776884,254.31,254.22,11.99241134]
[1732306923659,11.99241134,254.32,254.24,11.99241134]
[1732306923864,11.99241134,254.36,254.26,11.99241134]
[1732306924078,11.99241134,254.36,254.28,11.99241134]
[1732306924258,11.99241134,254.36,254.26,11.99241134]
[1732306924967,23.776884,254.35,254.26,11.99241134]
[1732306926073,11.99241134,254.34,254.26,11.99241134]
[1732306926273,11.99241134,254.34,254.24,11.99241134]
[1732306927461,23.776884,254.31,254.22,11.99241134]
[1732306927658,11.99241134,254.29,254.2,11.99241134]
[1732306928061,11.99241134,254.29,254.12,22.2672]
[1732306928258,11.99241134,254.29,254.22,11.99241134]
[1732306928486,11.99241134,254.29,254.2,11.99241134]
[1732306928785,11.99241134,254.26,254.18,11.99241134]
[1732306929775,16.4137,254.27,254.12,22.2672]
[1732306929776,16.4137,254.27,254.22,11.99241134]
[1732306929975,16.4137,254.27,254.2,11.99241134]
[1732306930569,11.99241134,254.3,254.15,11.99241134]
[1732306930570,11.99241134,254.32,254.24,11.99241134]
[1732306930887,16.6408,254.33,254.15,11.99241134]
[1732306930888,16.6408,254.33,254.26,11.99241134]
[1732306931182,16.6408,254.33,254.28,11.99241134]
[1732306932992,16.6408,254.33,254.26,11.99241134]
[1732306933172,16.6408,254.33,254.28,11.99241134]
[1732306933787,16.6408,254.33,254.26,11.99241134]
[1732306935599,23.776884,254.32,254.24,11.99241134]
[1732306936490,23.776884,254.32,254.15,11.99241134]
[1732306936491,35.76929534,254.32,254.15,11.99241134]
[1732306936701,11.99241134,254.3,254.21,11.99241134]
[1732306938890,11.99241134,254.26,254.17,11.99241134]
[1732306940387,11.99241134,254.26,254.19,11.99241134]
[1732306942689,11.99241134,254.26,254.17,11.99241134]
[1732306942883,11.99241134,254.24,254.15,11.99241134]
[1732306943087,11.99241134,254.21,254.13,11.99241134]
[1732306944600,28.30371134,254.23,254.07,16.2941]
[1732306944888,11.99241134,254.21,254.13,11.99241134]
[1732306945196,28.30371134,254.23,254.15,11.99241134]
[1732306946493,6.2775,254.28,254.21,11.99241134]
[1732306947398,28.04361134,254.29,254.15,11.99241134]
[1732306947399,16.0512,254.29,254.25,11.99241134]
[1732306948584,16.0512,254.29,254.23,11.99241134]
[1732306951777,16.0512,254.29,254.21,11.99241134]
[1732306952903,16.0512,254.29,254.23,11.99241134]
[1732306953106,16.0512,254.29,254.25,11.99241134]
[1732306953806,16.0512,254.29,254.27,11.99241134]
[1732306955704,16.0512,254.29,254.25,11.99241134]
[1732306956900,11.99241134,254.33,254.25,11.99241134]
[1732306957104,15.1656,254.41,254.32,11.99241134]
[1732306957399,11.99241134,254.4,254.3,11.99241134]
[1732306957606,11.99241134,254.36,254.26,11.99241134]
[1732306957901,33.83583208,254.41,254.26,11.99241134]
[1732306957902,11.99241134,254.34,254.26,11.99241134]
[1732306958404,23.776884,254.33,254.26,11.99241134]
[1732306958903,11.99241134,254.36,254.28,11.99241134]
[1732306959200,23.776884,254.35,254.28,11.99241134]
[1732306959609,23.776884,254.37,254.3,11.99241134]
[1732306959903,23.776884,254.37,254.28,11.99241134]
[1732306960079,23.776884,254.33,254.26,11.99241134]
[1732306961507,11.99241134,254.36,254.28,11.99241134]
[1732306961800,11.99241134,254.36,254.26,11.99241134]
[1732306962689,6.08221036,254.35,254.26,11.99241134]
[1732306963484,6.08221036,254.34,254.26,11.99241134]
[1732306964388,6.08221036,254.33,254.26,11.99241134]
[1732306965603,6.08221036,254.32,254.26,11.99241134]
[1732306966608,6.08221036,254.31,254.26,11.99241134]
[1732306967610,6.08221036,254.31,254.19,15.3402]
[1732306967611,6.08221036,254.31,254.23,11.99241134]
[1732306967997,6.08221036,254.31,254.25,11.99241134]
[1732306968421,6.08221036,254.3,254.25,11.99241134]
[1732306968708,16.3096,254.29,254.21,11.99241134]
[1732306968890,6.08221036,254.27,254.21,11.99241134]
[1732306969096,6.08221036,254.26,254.21,11.99241134]
[1732306969505,6.08221036,254.25,254.21,11.99241134]
[1732306971300,6.08221036,254.25,254.23,11.99241134]
[1732306971493,6.08221036,254.25,254.15,11.99241134]
[1732306971494,6.08221036,254.25,254.21,11.99241134]
[1732306972015,6.08221036,254.25,254.23,11.99241134]
[1732306972913,6.08221036,254.26,254.23,11.99241134]
[1732306974712,6.08221036,254.27,254.23,11.99241134]
[1732306975612,6.08221036,254.26,254.23,11.99241134]
[1732306976619,6.08221036,254.27,254.25,11.99241134]
[1732306982604,6.08221036,254.27,254.23,11.99241134]
[1732306982812,6.08221036,254.27,254.23,7.70241457]
[1732306983316,6.08221036,254.27,254.21,7.70241457]
[1732306983514,6.08221036,254.26,254.21,7.70241457]
[1732306983717,6.08221036,254.26,254.13,16.4954]
[1732306983902,6.08221036,254.25,254.18,7.70241457]
[1732306985119,6.08221036,254.24,254.18,7.70241457]
[1732306985317,6.08221036,254.23,254.18,7.70241457]
[1732306985700,7.70241457,254.2,254.07,16.3371]
[1732306985898,13.78462493,254.2,254.12,7.70241457]
[1732306986101,6.08221036,254.19,254.12,7.70241457]
[1732306986515,13.78462493,254.2,254.12,7.70241457]
[1732306986915,6.08221036,254.2,254.14,7.70241457]
[1732306987118,20.01391382,254.22,254.14,7.70241457]
[1732306987119,6.08221036,254.21,254.14,7.70241457]
[1732306987828,6.08221036,254.2,254.14,7.70241457]
[1732306990515,6.08221036,254.2,254.02,30.80965828]
[1732306990711,6.08221036,254.2,254.12,7.70241457]
[1732306991335,5.08221036,254.21,254.12,7.70241457]
[1732306993210,5.08221036,254.21,254.16,7.70241457]
[1732306993412,12.31149925,254.24,254.18,7.70241457]
[1732306993813,12.31149925,254.24,254.16,7.70241457]
[1732306994118,7.70241457,254.19,254.0,15.9033]
[1732306994315,7.70241457,254.13,254.05,7.70241457]
[1732306995619,7.70241457,254.07,253.94,18.0996]
[1732306995823,7.70241457,254.07,253.97,7.70241457]
[1732306996124,6.4118,254.11,253.97,7.70241457]
[1732306996125,7.70241457,254.05,253.97,7.70241457]
[1732306996433,7.70241457,254.07,253.99,7.70241457]
[1732306996619,18.72329925,254.11,254.01,7.70241457]
[1732306996620,7.70241457,254.09,254.01,7.70241457]
[1732306996928,18.46799154,254.11,254.04,12.05619154]
[1732306997627,6.4118,254.11,254.04,12.05619154]
[1732306998215,16.334,254.14,254.08,12.05619154]
[1732306999823,16.334,254.14,254.1,12.05619154]
[1732307000924,16.334,254.14,254.06,12.05619154]
[1732307001525,16.334,254.14,254.1,12.05619154]
[1732307002230,16.334,254.14,254.08,12.05619154]
[1732307003116,12.05619154,254.13,254.04,12.05619154]
[1732307003431,16.334,254.14,254.06,12.05619154]
[1732307003831,16.334,254.14,254.08,12.05619154]
[1732307004224,16.334,254.14,254.1,12.05619154]
[1732307006121,6.3045,254.18,254.1,12.05619154]
[1732307006529,6.3045,254.18,254.12,12.05619154]
[1732307006720,16.2905,254.19,254.14,12.05619154]
[1732307007515,6.4761,254.24,254.16,12.05619154]
[1732307007720,6.4761,254.24,254.18,12.05619154]
[1732307008537,12.31149925,254.29,254.22,12.05619154]
[1732307008722,6.4761,254.3,254.24,12.05619154]
[1732307009330,12.05619154,254.29,254.2,12.05619154]
[1732307010141,12.05619154,254.27,254.18,12.05619154]
[1732307010329,12.05619154,254.25,254.16,12.05619154]
[1732307011945,12.05619154,254.2,254.11,12.05619154]
[1732307012240,12.05619154,254.22,254.12,12.05619154]
[1732307013039,12.05619154,254.22,254.14,12.05619154]
[1732307014034,12.31149925,254.27,254.14,12.05619154]
[1732307014035,12.05619154,254.24,254.14,12.05619154]
[1732307014542,23.776884,254.23,254.14,12.05619154]
[1732307015550,12.05619154,254.18,254.05,15.2538]
[1732307015720,12.05619154,254.18,254.0,6.046]
[1732307015921,12.05619154,254.18,254.09,12.05619154]
[1732307016838,15.8974,254.21,254.15,12.05619154]
[1732307017041,12.05619154,254.2,254.13,12.05619154]
[1732307017223,12.05619154,254.16,254.09,12.05619154]
[1732307018134,35.83307554,254.18,254.09,12.05619154]
[1732307018649,12.05619154,254.18,254.09,12.05619154]
[1732307018829,7.71060345,254.18,254.1,7.71060345]
[1732307020831,7.71060345,254.16,254.08,7.71060345]
[1732307021037,6.0489,254.19,253.94,9.2173]
[1732307021038,7.71060345,254.12,253.94,9.2173]
[1732307021346,7.71060345,254.12,254.03,7.71060345]
[1732307022137,7.71060345,254.14,254.05,7.71060345]
[1732307022644,23.776884,254.13,254.05,7.71060345]
[1732307025443,7.71060345,254.12,254.05,7.71060345]
[1732307026142,7.71060345,254.12,254.03,7.71060345]
[1732307026344,7.71060345,254.1,253.94,9.2173]
[1732307026556,7.71060345,254.06,253.98,7.71060345]
[1732307026734,7.71060345,254.04,253.94,3.0]
[1732307026935,7.71060345,254.02,253.94,3.0]
[1732307027462,16.0848,254.03,253.94,3.0]
[1732307027463,7.71060345,254.0,253.94,3.0]
[1732307028152,7.71060345,253.96,253.94,3.0]
[1732307028842,12.06823063,253.96,253.94,3.0]
[1732307029628,16.0029,253.95,253.94,3.0]
[1732307029957,16.0029,253.95,253.94,2.808]
[1732307031838,39.779784,253.95,253.94,2.808]
[1732307035937,23.776884,253.94,253.79,12.06823063]
[1732307036140,12.06823063,253.87,253.79,12.06823063]
[1732307038059,12.06823063,253.85,253.75,3.0]
[1732307038257,12.06823063,253.83,253.76,12.06823063]
[1732307039141,12.06823063,253.85,253.76,12.06823063]
[1732307040252,12.06823063,253.89,253.8,12.06823063]
[1732307040562,16.0029,253.95,253.84,12.06823063]
[1732307040563,12.06823063,253.91,253.84,12.06823063]
[1732307041062,12.06823063,253.89,253.82,12.06823063]
[1732307042556,23.776884,253.88,253.81,12.06823063]
[1732307042742,12.06823063,253.89,253.81,12.06823063]
[1732307043261,12.06823063,253.89,253.76,12.06823063]
[1732307043262,12.06823063,253.9,253.82,12.06823063]
[1732307044241,35.84511463,253.89,253.81,12.06823063]
[1732307044448,12.06823063,253.83,253.75,3.0]
[1732307044643,12.06823063,253.79,253.75,3.0]
[1732307044888,15.0952,253.82,253.75,3.0]
[1732307044889,12.06823063,253.77,253.75,3.0]
[1732307045162,23.776884,253.76,253.75,3.0]
[1732307047860,12.06823063,253.81,253.75,3.0]
[1732307048159,15.0952,253.82,253.75,15.06823063]
[1732307048463,12.06823063,253.85,253.77,12.06823063]
[1732307048659,6.4364,253.88,253.81,12.06823063]
[1732307048660,22.0312,253.88,253.81,12.06823063]
[1732307048854,22.0312,253.88,253.79,12.06823063]
[1732307048855,12.06823063,253.87,253.79,12.06823063]
[1732307049062,15.5948,253.88,253.81,12.06823063]
[1732307049455,12.06823063,253.89,253.83,12.06823063]
[1732307049767,12.06823063,253.89,253.81,12.06823063]
[1732307050764,12.06823063,253.89,253.83,12.06823063]
[1732307050968,12.06823063,253.89,253.76,12.06823063]
[1732307050969,27.66303063,253.95,253.87,12.06823063]
[1732307051554,27.66303063,253.95,253.75,5.5]
[1732307051963,27.66303063,253.95,253.87,12.06823063]
[1732307052169,6.3049,254.0,253.93,12.06823063]
[1732307052349,12.06823063,254.02,253.93,12.06823063]
[1732307053753,12.06823063,254.0,253.93,12.06823063]
[1732307053950,23.776884,253.99,253.93,12.06823063]
[1732307056250,23.776884,254.01,253.93,12.06823063]
[1732307056662,25.67041967,254.11,253.95,12.06823063]
[1732307056973,12.06823063,254.08,253.99,12.06823063]
[1732307057154,12.06823063,254.1,254.01,12.06823063]
[1732307057557,16.2518,254.11,254.03,12.06823063]
[1732307058259,12.06823063,254.14,254.05,12.06823063]
[1732307058467,12.06823063,254.16,254.07,12.06823063]
[1732307059372,22.5808,254.18,254.07,12.06823063]
[1732307059373,12.06823063,254.14,254.07,12.06823063]
[1732307059676,23.776884,254.13,254.05,12.06823063]
[1732307060083,35.84511463,254.13,254.05,12.06823063]
[1732307060375,35.84511463,254.13,254.02,16.2838]
[1732307060376,23.776884,254.08,253.99,12.06823063]
[1732307061355,23.776884,254.08,254.01,12.06823063]
[1732307062475,23.776884,254.06,253.99,12.06823063]
[1732307062666,12.06823063,254.05,253.97,12.06823063]
[1732307062975,23.776884,254.04,253.99,12.06823063]
[1732307063557,23.776884,254.06,253.99,12.06823063]
[1732307063756,12.06823063,254.05,253.97,12.06823063]
[1732307064085,23.776884,254.04,253.97,12.06823063]
[1732307064977,12.06823063,254.03,253.95,12.06823063]
[1732307065179,12.06823063,254.01,253.93,12.06823063]
[1732307065484,15.1133,254.06,253.89,21.2077]
[1732307065485,12.06823063,254.05,253.97,12.06823063]
[1732307065677,23.776884,254.04,253.95,12.06823063]
[1732307066581,23.776884,254.04,253.97,12.06823063]
[1732307068170,12.06823063,254.03,253.95,12.06823063]
[1732307068375,23.776884,254.0,253.93,12.06823063]
[1732307068573,23.776884,254.0,253.89,21.2077]
[1732307068574,12.06823063,253.99,253.91,12.06823063]
[1732307070183,23.776884,253.98,253.89,12.06823063]
[1732307070369,12.06823063,253.95,253.87,12.06823063]
[1732307070568,23.776884,253.94,253.87,12.06823063]
[1732307071679,23.776884,253.94,253.83,12.06823063]
[1732307071680,12.06823063,253.93,253.83,12.06823063]
[1732307071984,23.776884,253.92,253.83,12.06823063]
[1732307072283,23.776884,253.92,253.85,12.06823063]
[1732307072784,23.776884,253.92,253.83,12.06823063]
[1732307072979,23.776884,253.9,253.83,12.06823063]
[1732307073484,23.776884,253.9,253.81,12.06823063]
[1732307073684,23.776884,253.88,253.81,12.06823063]
[1732307074169,23.776884,253.9,253.83,12.06823063]
[1732307075587,23.776884,253.9,253.81,12.06823063]
[1732307077169,12.06823063,253.87,253.79,12.06823063]
[1732307077474,23.776884,253.9,253.83,12.06823063]
[1732307079089,23.776884,253.92,253.83,12.06823063]
[1732307080288,23.776884,253.9,253.81,12.06823063]
[1732307083196,23.776884,253.9,253.83,12.06823063]
[1732307086897,23.776884,253.9,253.81,12.06823063]
[1732307087487,16.2344,253.93,253.87,12.06823063]
[1732307087691,16.2344,253.93,253.85,12.06823063]
[1732307087886,28.30263063,253.93,253.83,12.06823063]
[1732307088087,12.06823063,253.91,253.81,12.06823063]
[1732307088477,28.30263063,253.93,253.83,12.06823063]
[1732307088675,28.30263063,253.93,253.75,3.0]
[1732307088676,12.06823063,253.88,253.75,3.0]
[1732307088873,12.06823063,253.86,253.78,12.06823063]
[1732307089071,23.776884,253.85,253.78,12.06823063]
[1732307089492,23.776884,253.87,253.78,12.06823063]
[1732307092497,23.776884,253.87,253.8,12.06823063]
[1732307092882,23.776884,253.89,253.82,12.06823063]
[1732307095802,23.776884,253.89,253.75,3.0]
[1732307096001,23.776884,253.89,253.82,12.06823063]
[1732307096202,23.776884,253.89,253.8,12.06823063]
[1732307096376,12.06823063,253.88,253.8,12.06823063]
[1732307096704,23.776884,253.87,253.8,12.06823063]
[1732307097593,23.776884,253.89,253.8,12.06823063]